﻿Department Family,Entity,Date,Expense Type,Expense Area,Supplier,Amount in Sterling
Companies House,CH,02/06/2021,Belfast Maintenance           ,Northern Ireland              ,GOVERNMENT PROPERTY AGENCY (Montagu Evan,"£1,680.60"
Companies House,CH,15/06/2021,Belfast Maintenance           ,Northern Ireland              ,GOVERNMENT PROPERTY AGENCY (Montagu Evan,"£1,680.60"
Companies House,CH,15/06/2021,Building Refurbishment        ,Building Services             ,Sealability Limited                     ,"£15,858.41"
Companies House,CH,15/06/2021,Building Refurbishment        ,Building Services             ,Sealability Limited                     ,"£30,400.62"
Companies House,CH,30/06/2021,Car parking contract          ,Northern Ireland              ,CBRE NI LIMITED                         ,£900.00
Companies House,CH,23/06/2021,CE Misc Additions TY          ,Infrastructure                ,ACADEMIA LTD                            ,"£2,053.19"
Companies House,CH,23/06/2021,CE Misc Additions TY          ,Infrastructure                ,Microsoft Limited                       ,"£16,296.60"
Companies House,CH,23/06/2021,CE Misc Additions TY          ,Infrastructure                ,Microsoft Limited                       ,"£16,296.60"
Companies House,CH,23/06/2021,CHD Invoice Printing          ,Accounting                    ,PARAGON CUSTOMER COMMUNICATIONS (LONDON),£593.32
Companies House,CH,02/06/2021,CHD Invoice Printing          ,Accounting                    ,PARAGON CUSTOMER COMMUNICATIONS (LONDON),£611.60
Companies House,CH,15/06/2021,Circuit Rental                ,Infrastructure                ,AdEPT Telecom PLC                       ,"£4,306.34"
Companies House,CH,09/06/2021,Circuit Rental                ,Infrastructure                ,HIGHSPEED OFFICE LTD                    ,"£18,939.00"
Companies House,CH,11/06/2021,Circuit Rental                ,Infrastructure                ,Virgin Media Business                   ,"£24,500.00"
Companies House,CH,02/06/2021,Cleaning Contract             ,Building Services             ,GOVERNMENT PROPERTY AGENCY (Montagu Evan,£552.85
Companies House,CH,02/06/2021,Cleaning Contract             ,Building Services             ,GOVERNMENT PROPERTY AGENCY (Montagu Evan,£617.09
Companies House,CH,02/06/2021,Cleaning Contract             ,Building Services             ,GOVERNMENT PROPERTY AGENCY (Montagu Evan,"£24,753.31"
Companies House,CH,02/06/2021,Cleaning Contract             ,Building Services             ,GOVERNMENT PROPERTY AGENCY (Montagu Evan,"£37,437.34"
Companies House,CH,15/06/2021,Cleaning Contract             ,Building Services             ,GOVERNMENT PROPERTY AGENCY (Montagu Evan,"£37,437.34"
Companies House,CH,02/06/2021,Cleaning Contract             ,Edinburgh                     ,GOVERNMENT PROPERTY AGENCY (Montagu Evan,£843.51
Companies House,CH,15/06/2021,Cleaning Contract             ,Edinburgh                     ,GOVERNMENT PROPERTY AGENCY (Montagu Evan,£843.51
Companies House,CH,02/06/2021,Cleaning Contract             ,London Information Centre     ,GOVERNMENT PROPERTY AGENCY (Montagu Evan,"£1,456.89"
Companies House,CH,15/06/2021,Cleaning Contract             ,London Information Centre     ,GOVERNMENT PROPERTY AGENCY (Montagu Evan,"£1,456.89"
Companies House,CH,10/06/2021,Cloud Services                ,Infrastructure Engineering    ,Amazon Web Services                     ,"£1,376.08"
Companies House,CH,10/06/2021,Cloud Services                ,Infrastructure Engineering    ,Amazon Web Services                     ,"£2,996.45"
Companies House,CH,10/06/2021,Cloud Services                ,Infrastructure Engineering    ,Amazon Web Services                     ,"£3,008.68"
Companies House,CH,10/06/2021,Cloud Services                ,Infrastructure Engineering    ,Amazon Web Services                     ,"£3,307.50"
Companies House,CH,10/06/2021,Cloud Services                ,Infrastructure Engineering    ,Amazon Web Services                     ,"£3,515.88"
Companies House,CH,10/06/2021,Cloud Services                ,Infrastructure Engineering    ,Amazon Web Services                     ,"£8,441.60"
Companies House,CH,11/06/2021,Cloud Services                ,Infrastructure Engineering    ,Amazon Web Services                     ,"£9,488.00"
Companies House,CH,10/06/2021,Cloud Services                ,Infrastructure Engineering    ,Amazon Web Services                     ,"£84,359.73"
Companies House,CH,10/06/2021,Cloud Services                ,Infrastructure Engineering    ,Amazon Web Services                     ,"£94,906.49"
Companies House,CH,24/06/2021,Cloud Services                ,Infrastructure Engineering    ,Amazon Web Services                     ,"£235,247.53"
Companies House,CH,23/06/2021,Communications General        ,"Strategy, Policy & Communications      ","SHUTTERSTOCK,INC                        ","£3,939.00"
Companies House,CH,09/06/2021,Consultants Computer          ,Accounting                    ,Advanced Business Solutions             ,"£1,275.00"
Companies House,CH,07/06/2021,Contact Centre                ,CDD Cardiff                   ,Serco Limited                           ,"£180,530.72"
Companies House,CH,17/06/2021,Contract Staff         ,Accounting                    ,Hays Specialist Recruitment Ltd         ,£623.90
Companies House,CH,02/06/2021,Contract Staff         ,Accounting                    ,Hays Specialist Recruitment Ltd         ,£633.60
Companies House,CH,04/06/2021,Contract Staff         ,Accounting                    ,Hays Specialist Recruitment Ltd         ,£633.60
Companies House,CH,17/06/2021,Contract Staff         ,Accounting                    ,Hays Specialist Recruitment Ltd         ,£633.60
Companies House,CH,02/06/2021,Contract Staff         ,Accounting                    ,Hays Specialist Recruitment Ltd         ,£689.09
Companies House,CH,04/06/2021,Contract Staff         ,Accounting                    ,Hays Specialist Recruitment Ltd         ,£689.09
Companies House,CH,28/06/2021,Contract Staff         ,Accounting                    ,Hays Specialist Recruitment Ltd         ,£689.09
Companies House,CH,09/06/2021,Contract Staff         ,Accounting                    ,MICHAEL PAGE INTERNATIONAL RECRUITMENT  ,£975.00
Companies House,CH,02/06/2021,Contract Staff         ,Accounting                    ,MICHAEL PAGE INTERNATIONAL RECRUITMENT  ,"£1,462.50"
Companies House,CH,15/06/2021,Contract Staff         ,Accounting                    ,MICHAEL PAGE INTERNATIONAL RECRUITMENT  ,"£1,514.35"
Companies House,CH,02/06/2021,Contract Staff         ,Accounting                    ,MICHAEL PAGE INTERNATIONAL RECRUITMENT  ,"£1,625.00"
Companies House,CH,15/06/2021,Contract Staff         ,Accounting                    ,MICHAEL PAGE INTERNATIONAL RECRUITMENT  ,"£1,625.00"
Companies House,CH,23/06/2021,Contract Staff         ,Accounting                    ,MICHAEL PAGE INTERNATIONAL RECRUITMENT  ,"£1,625.00"
Companies House,CH,02/06/2021,Contract Staff         ,Accounting                    ,MICHAEL PAGE INTERNATIONAL RECRUITMENT  ,"£3,028.70"
Companies House,CH,11/06/2021,Contract Staff         ,ACI - Data Science            ,CONCEPT RESOURCING T/A CONCEPT INFORMATION,"£1,442.52"
Companies House,CH,02/06/2021,Contract Staff         ,ACI - Data Science            ,CONCEPT RESOURCING T/A CONCEPT INFORMATION,"£1,803.15"
Companies House,CH,04/06/2021,Contract Staff         ,ACI - Data Science            ,CONCEPT RESOURCING T/A CONCEPT INFORMATION,"£1,803.15"
Companies House,CH,17/06/2021,Contract Staff         ,ACI - Data Science            ,CONCEPT RESOURCING T/A CONCEPT INFORMATION,"£1,803.15"
Companies House,CH,28/06/2021,Contract Staff         ,ACI - Data Science            ,CONCEPT RESOURCING T/A CONCEPT INFORMATION,"£1,803.15"
Companies House,CH,15/06/2021,Contract Staff         ,Building Services             ,MICHAEL PAGE INTERNATIONAL RECRUITMENT  ,"£1,691.25"
Companies House,CH,02/06/2021,Contract Staff         ,Building Services             ,Hays Specialist Recruitment Ltd         ,"£1,810.62"
Companies House,CH,04/06/2021,Contract Staff         ,Building Services             ,Hays Specialist Recruitment Ltd         ,"£1,810.62"
Companies House,CH,15/06/2021,Contract Staff         ,Building Services             ,MICHAEL PAGE INTERNATIONAL RECRUITMENT  ,"£4,735.50"
Companies House,CH,28/06/2021,Contract Staff         ,CDD Cardiff                   ,Hays Specialist Recruitment Ltd         ,£769.69
Companies House,CH,11/06/2021,Contract Staff         ,Change & Continuous Improvement,ALEXANDER MANN SOLUTIONS                ,"£3,449.18"
Companies House,CH,04/06/2021,Contract Staff         ,Change & Continuous Improvement,ALEXANDER MANN SOLUTIONS                ,"£4,311.48"
Companies House,CH,23/06/2021,Contract Staff         ,Change & Continuous Improvement,ALEXANDER MANN SOLUTIONS                ,"£4,311.48"
Companies House,CH,28/06/2021,Contract Staff         ,Change & Continuous Improvement,ALEXANDER MANN SOLUTIONS                ,"£4,311.48"
Companies House,CH,02/06/2021,Contract Staff         ,Change & Continuous Improvement,ALEXANDER MANN SOLUTIONS                ,"£8,622.96"
Companies House,CH,04/06/2021,Contract Staff         ,HR Strategy & Policy          ,Hays Specialist Recruitment Ltd         ,£979.44
Companies House,CH,11/06/2021,Contract Staff         ,HR Strategy & Policy          ,Hays Specialist Recruitment Ltd         ,£979.44
Companies House,CH,04/06/2021,Contract Staff         ,HR Strategy & Policy          ,Hays Specialist Recruitment Ltd         ,"£1,224.30"
Companies House,CH,04/06/2021,Contract Staff         ,HR Strategy & Policy          ,Hays Specialist Recruitment Ltd         ,"£1,224.30"
Companies House,CH,04/06/2021,Contract Staff         ,HR Strategy & Policy          ,Hays Specialist Recruitment Ltd         ,"£1,224.30"
Companies House,CH,17/06/2021,Contract Staff         ,HR Strategy & Policy          ,Hays Specialist Recruitment Ltd         ,"£1,224.30"
Companies House,CH,04/06/2021,Contract Staff         ,Infrastructure                ,ALEXANDER MANN SOLUTIONS                ,"£2,278.99"
Companies House,CH,11/06/2021,Contract Staff         ,Infrastructure                ,ALEXANDER MANN SOLUTIONS                ,"£2,278.99"
Companies House,CH,23/06/2021,Contract Staff         ,Infrastructure                ,ALEXANDER MANN SOLUTIONS                ,"£2,563.87"
Companies House,CH,28/06/2021,Contract Staff         ,Infrastructure                ,ALEXANDER MANN SOLUTIONS                ,"£2,848.74"
Companies House,CH,02/06/2021,Contract Staff         ,Infrastructure                ,Spring Technology Staffing Services Ltd ,"£3,411.60"
Companies House,CH,09/06/2021,Contract Staff         ,Infrastructure                ,Spring Technology Staffing Services Ltd ,"£3,411.60"
Companies House,CH,15/06/2021,Contract Staff         ,Infrastructure                ,Spring Technology Staffing Services Ltd ,"£4,264.50"
Companies House,CH,23/06/2021,Contract Staff         ,Infrastructure                ,Spring Technology Staffing Services Ltd ,"£4,264.50"
Companies House,CH,30/06/2021,Contract Staff         ,Infrastructure                ,Spring Technology Staffing Services Ltd ,"£4,264.50"
Companies House,CH,02/06/2021,Contract Staff         ,Infrastructure                ,ALEXANDER MANN SOLUTIONS                ,"£5,697.48"
Companies House,CH,09/06/2021,Contract Staff         ,Infrastructure Engineering    ,Hays Specialist Recruitment Ltd         ,"£2,600.16"
Companies House,CH,09/06/2021,Contract Staff         ,Infrastructure Engineering    ,Spring Technology Staffing Services Ltd ,"£2,702.40"
Companies House,CH,02/06/2021,Contract Staff         ,Infrastructure Engineering    ,Hays Specialist Recruitment Ltd         ,"£3,250.20"
Companies House,CH,15/06/2021,Contract Staff         ,Infrastructure Engineering    ,Hays Specialist Recruitment Ltd         ,"£3,250.20"
Companies House,CH,23/06/2021,Contract Staff         ,Infrastructure Engineering    ,Hays Specialist Recruitment Ltd         ,"£3,250.20"
Companies House,CH,30/06/2021,Contract Staff         ,Infrastructure Engineering    ,Hays Specialist Recruitment Ltd         ,"£3,250.20"
Companies House,CH,02/06/2021,Contract Staff         ,Infrastructure Engineering    ,Spring Technology Staffing Services Ltd ,"£3,378.00"
Companies House,CH,15/06/2021,Contract Staff         ,Infrastructure Engineering    ,Spring Technology Staffing Services Ltd ,"£3,378.00"
Companies House,CH,23/06/2021,Contract Staff         ,Infrastructure Engineering    ,Spring Technology Staffing Services Ltd ,"£3,378.00"
Companies House,CH,30/06/2021,Contract Staff         ,Infrastructure Engineering    ,Spring Technology Staffing Services Ltd ,"£3,378.00"
Companies House,CH,02/06/2021,Contract Staff         ,Late Filing Penalties Accounting                ,Hays Specialist Recruitment Ltd         ,£639.00
Companies House,CH,17/06/2021,Contract Staff         ,Late Filing Penalties Accounting                ,Hays Specialist Recruitment Ltd         ,£639.00
Companies House,CH,09/06/2021,Contract Staff         ,Portfolio                     ,Hays Specialist Recruitment Ltd         ,"£1,581.05"
Companies House,CH,09/06/2021,Contract Staff         ,Portfolio                     ,Hays Specialist Recruitment Ltd         ,"£1,783.12"
Companies House,CH,09/06/2021,Contract Staff         ,Portfolio                     ,Hays Specialist Recruitment Ltd         ,"£1,968.72"
Companies House,CH,15/06/2021,Contract Staff         ,Portfolio                     ,Hays Specialist Recruitment Ltd         ,"£2,377.49"
Companies House,CH,02/06/2021,Contract Staff         ,Portfolio                     ,Hays Specialist Recruitment Ltd         ,"£2,460.90"
Companies House,CH,15/06/2021,Contract Staff         ,Portfolio                     ,Hays Specialist Recruitment Ltd         ,"£2,460.90"
Companies House,CH,23/06/2021,Contract Staff         ,Portfolio                     ,Hays Specialist Recruitment Ltd         ,"£2,460.90"
Companies House,CH,30/06/2021,Contract Staff         ,Portfolio                     ,Hays Specialist Recruitment Ltd         ,"£2,460.90"
Companies House,CH,02/06/2021,Contract Staff         ,Portfolio                     ,Hays Specialist Recruitment Ltd         ,"£2,635.08"
Companies House,CH,17/06/2021,Contract Staff         ,Portfolio                     ,Hays Specialist Recruitment Ltd         ,"£2,635.08"
Companies House,CH,23/06/2021,Contract Staff         ,Portfolio                     ,Hays Specialist Recruitment Ltd         ,"£2,635.08"
Companies House,CH,15/06/2021,Contract Staff         ,Portfolio                     ,Hays Specialist Recruitment Ltd         ,"£2,674.68"
Companies House,CH,30/06/2021,Contract Staff         ,Portfolio                     ,Hays Specialist Recruitment Ltd         ,"£2,965.08"
Companies House,CH,02/06/2021,Contract Staff         ,Portfolio                     ,Hays Specialist Recruitment Ltd         ,"£2,971.86"
Companies House,CH,15/06/2021,Contract Staff         ,Portfolio                     ,Hays Specialist Recruitment Ltd         ,"£2,971.86"
Companies House,CH,15/06/2021,Contract Staff         ,Portfolio                     ,Hays Specialist Recruitment Ltd         ,"£2,971.86"
Companies House,CH,15/06/2021,Contract Staff         ,Portfolio                     ,Hays Specialist Recruitment Ltd         ,"£2,971.86"
Companies House,CH,23/06/2021,Contract Staff         ,Portfolio                     ,Hays Specialist Recruitment Ltd         ,"£2,971.86"
Companies House,CH,23/06/2021,Contract Staff         ,Portfolio                     ,Hays Specialist Recruitment Ltd         ,"£2,971.86"
Companies House,CH,30/06/2021,Contract Staff         ,Portfolio                     ,Hays Specialist Recruitment Ltd         ,"£2,971.86"
Companies House,CH,30/06/2021,Contract Staff         ,Portfolio                     ,Hays Specialist Recruitment Ltd         ,"£3,301.86"
Companies House,CH,09/06/2021,Contract Staff         ,Procurement                   ,Hays Specialist Recruitment Ltd         ,"£2,478.89"
Companies House,CH,09/06/2021,Contract Staff         ,Procurement                   ,Hays Specialist Recruitment Ltd         ,"£2,833.01"
Companies House,CH,09/06/2021,Contract Staff         ,Procurement                   ,Hays Specialist Recruitment Ltd         ,"£3,156.14"
Companies House,CH,28/06/2021,Contract Staff         ,Procurement                   ,Hays Specialist Recruitment Ltd         ,"£3,156.14"
Companies House,CH,02/06/2021,Contract Staff         ,Procurement                   ,Hays Specialist Recruitment Ltd         ,"£3,541.26"
Companies House,CH,02/06/2021,Contract Staff         ,Procurement                   ,Hays Specialist Recruitment Ltd         ,"£3,541.26"
Companies House,CH,02/06/2021,Contract Staff         ,Procurement                   ,Hays Specialist Recruitment Ltd         ,"£3,541.26"
Companies House,CH,17/06/2021,Contract Staff         ,Procurement                   ,Hays Specialist Recruitment Ltd         ,"£3,541.26"
Companies House,CH,23/06/2021,Contract Staff         ,Procurement                   ,Hays Specialist Recruitment Ltd         ,"£3,541.26"
Companies House,CH,23/06/2021,Contract Staff         ,Procurement                   ,Hays Specialist Recruitment Ltd         ,"£3,541.26"
Companies House,CH,28/06/2021,Contract Staff         ,Procurement                   ,Hays Specialist Recruitment Ltd         ,"£3,541.26"
Companies House,CH,30/06/2021,Contract Staff         ,Procurement                   ,Hays Specialist Recruitment Ltd         ,"£3,541.26"
Companies House,CH,02/06/2021,Contract Staff         ,Procurement                   ,Hays Specialist Recruitment Ltd         ,"£3,945.18"
Companies House,CH,02/06/2021,Contract Staff         ,Procurement                   ,Hays Specialist Recruitment Ltd         ,"£3,945.18"
Companies House,CH,17/06/2021,Contract Staff         ,Procurement                   ,Hays Specialist Recruitment Ltd         ,"£3,945.18"
Companies House,CH,30/06/2021,Contract Staff         ,Procurement                   ,Hays Specialist Recruitment Ltd         ,"£3,945.18"
Companies House,CH,09/06/2021,Contract Staff         ,Projects,Hays Specialist Recruitment Ltd         ,"£1,306.34"
Companies House,CH,23/06/2021,Contract Staff         ,Projects,Hays Specialist Recruitment Ltd         ,"£1,959.52"
Companies House,CH,11/06/2021,Contract Staff         ,Projects,Hays Specialist Recruitment Ltd         ,"£2,286.11"
Companies House,CH,09/06/2021,Contract Staff         ,Projects,Hays Specialist Recruitment Ltd         ,"£2,686.37"
Companies House,CH,09/06/2021,Contract Staff         ,Projects,Hays Specialist Recruitment Ltd         ,"£3,265.86"
Companies House,CH,09/06/2021,Contract Staff         ,Projects,Hays Specialist Recruitment Ltd         ,"£3,357.96"
Companies House,CH,11/06/2021,Contract Staff         ,"Strategy, Policy & Communications      ",Hays Specialist Recruitment Ltd         ,£771.68
Companies House,CH,11/06/2021,Contract Staff         ,"Strategy, Policy & Communications      ",Hays Specialist Recruitment Ltd         ,£789.23
Companies House,CH,02/06/2021,Contract Staff         ,"Strategy, Policy & Communications      ",Hays Specialist Recruitment Ltd         ,£846.00
Companies House,CH,11/06/2021,Contract Staff         ,"Strategy, Policy & Communications      ",Hays Specialist Recruitment Ltd         ,£846.00
Companies House,CH,15/06/2021,Contract Staff         ,"Strategy, Policy & Communications      ",Hays Specialist Recruitment Ltd         ,£846.00
Companies House,CH,23/06/2021,Contract Staff         ,"Strategy, Policy & Communications      ",Hays Specialist Recruitment Ltd         ,£846.00
Companies House,CH,30/06/2021,Contract Staff         ,"Strategy, Policy & Communications      ",Hays Specialist Recruitment Ltd         ,£846.00
Companies House,CH,11/06/2021,Contract Staff         ,"Strategy, Policy & Communications      ",Hays Specialist Recruitment Ltd         ,£887.92
Companies House,CH,28/06/2021,Contract Staff         ,"Strategy, Policy & Communications      ",Hays Specialist Recruitment Ltd         ,"£1,202.38"
Companies House,CH,02/06/2021,Contract Staff         ,"Strategy, Policy & Communications      ",Hays Specialist Recruitment Ltd         ,"£1,220.89"
Companies House,CH,11/06/2021,Contract Staff         ,"Strategy, Policy & Communications      ",Hays Specialist Recruitment Ltd         ,"£1,276.38"
Companies House,CH,02/06/2021,Contract Staff         ,"Strategy, Policy & Communications      ",Hays Specialist Recruitment Ltd         ,"£1,297.84"
Companies House,CH,17/06/2021,Contract Staff         ,"Strategy, Policy & Communications      ",Hays Specialist Recruitment Ltd         ,"£1,297.84"
Companies House,CH,28/06/2021,Contract Staff         ,"Strategy, Policy & Communications      ",Hays Specialist Recruitment Ltd         ,"£1,297.84"
Companies House,CH,17/06/2021,Contract Staff         ,"Strategy, Policy & Communications      ",Hays Specialist Recruitment Ltd         ,"£1,368.86"
Companies House,CH,23/06/2021,Contract Staff         ,WebOps & DevOps               ,ALEXANDER MANN SOLUTIONS                ,"£2,930.88"
Companies House,CH,28/06/2021,Contract Staff         ,WebOps & DevOps               ,ALEXANDER MANN SOLUTIONS                ,"£2,930.88"
Companies House,CH,02/06/2021,Contract Staff         ,WebOps & DevOps               ,ALEXANDER MANN SOLUTIONS                ,"£3,517.06"
Companies House,CH,11/06/2021,Contract Staff         ,WebOps & DevOps               ,ALEXANDER MANN SOLUTIONS                ,"£4,103.23"
Companies House,CH,17/06/2021,Diversity & Inclusion         ,Health and Wellbeing          ,FAIR PLAY (WORKFORCE) LTD               ,"£10,000.00"
Companies House,CH,02/06/2021,Edinburgh Maintenance         ,Edinburgh                     ,GOVERNMENT PROPERTY AGENCY (Montagu Evan,"£1,040.92"
Companies House,CH,15/06/2021,Edinburgh Maintenance         ,Edinburgh                     ,GOVERNMENT PROPERTY AGENCY (Montagu Evan,"£1,040.92"
Companies House,CH,15/06/2021,Electricity                   ,Building Services             ,EDF ENERGY CUSTOMERS PLC                ,"£45,730.84"
Companies House,CH,11/06/2021,Electricity                   ,Building Services             ,EDF ENERGY CUSTOMERS PLC                ,"£45,900.40"
Companies House,CH,17/06/2021,Electricity                   ,Building Services             ,EDF ENERGY CUSTOMERS PLC                ,"£46,257.90"
Companies House,CH,17/06/2021,Electricity                   ,Edinburgh                     ,EDF ENERGY CUSTOMERS PLC                ,£734.70
Companies House,CH,11/06/2021,Electricity                   ,Northern Ireland              ,Power NI                                ,"£2,055.60"
Companies House,CH,28/06/2021,Environmental costs           ,Building Services             ,TERSUS CONSULTANCY LIMITED              ,"£2,400.00"
Companies House,CH,17/06/2021,Environmental costs           ,Building Services             ,TERSUS CONSULTANCY LIMITED              ,"£23,824.00"
Companies House,CH,02/06/2021,EST Additions This Year       ,Building Services             ,Advanced Fire Technologies Ltd          ,"£7,318.08"
Companies House,CH,02/06/2021,EST Additions This Year       ,Building Services             ,Advanced Fire Technologies Ltd          ,"£9,071.04"
Companies House,CH,04/06/2021,EST Additions This Year       ,Building Services             ,Schneider Electric IT UK Ltd            ,"£16,524.00"
Companies House,CH,02/06/2021,EST Additions This Year       ,Covid 19 Activity             ,COMBINED OFFICE INTERIORS LTD           ,£887.50
Companies House,CH,09/06/2021,External Managed Services,Portfolio                     ,AMIDO LTD                               ,"£98,845.00"
Companies House,CH,15/06/2021,External managed services     ,Architecture & Design         ,FDM GROUP                               ,"£57,014.00"
Companies House,CH,15/06/2021,External managed services     ,Architecture & Design         ,FDM GROUP                               ,"£57,964.00"
Companies House,CH,15/06/2021,External managed services     ,Architecture & Design         ,FDM GROUP                               ,"£59,954.00"
Companies House,CH,02/06/2021,External managed services     ,Architecture & Design         ,FDM GROUP                               ,"£60,596.00"
Companies House,CH,02/06/2021,External managed services     ,Architecture & Design         ,FDM GROUP                               ,"£60,624.80"
Companies House,CH,15/06/2021,External managed services     ,Architecture & Design         ,FDM GROUP                               ,"£61,440.00"
Companies House,CH,09/06/2021,External managed services     ,DDaT Projects                 ,KAINOS SOFTWARE LTD                     ,"£94,964.17"
Companies House,CH,11/06/2021,External managed services     ,DDaT Projects                 ,KAINOS SOFTWARE LTD                     ,"£95,654.97"
Companies House,CH,11/06/2021,Gas                           ,Building Services             ,CORONA ENERGY RETAIL 4 LTD              ,£620.63
Companies House,CH,24/06/2021,Government Legal              ,CDD Cardiff                   ,GOVERNMENT LEGAL DEPARTMENT             ,"£77,787.84"
Companies House,CH,24/06/2021,Government Legal              ,CDD Cardiff                   ,GOVERNMENT LEGAL DEPARTMENT             ,"£84,335.04"
Companies House,CH,30/06/2021,Hardware &Software Maintenance ,Infrastructure                ,QBS SOFTWARE LTD                        ,"£1,225.00"
Companies House,CH,09/06/2021,Hardware &Software Maintenance ,Infrastructure                ,AUTOMATED-INTELLIGENCE LTD              ,"£2,500.00"
Companies House,CH,23/06/2021,Hardware &Software Maintenance ,Infrastructure                ,SOLARWINDS SOFTWARE EUROPE DAC          ,"£3,444.00"
Companies House,CH,02/06/2021,Hardware &Software Maintenance ,Infrastructure                ,RISO (uk) LTD                           ,"£4,939.00"
Companies House,CH,04/06/2021,Hardware &Software Maintenance ,Infrastructure                ,Computacenter (GCAT)                    ,"£288,550.32"
Companies House,CH,23/06/2021,Hardware &Software Maintenance ,Procurement                   ,MHR                                     ,"£2,439.84"
Companies House,CH,07/06/2021,Hardware &Software Maintenance ,WebOps & DevOps               ,The Insolvency Service                  ,"£6,208.00"
Companies House,CH,23/06/2021,Hardware &Software Maintenance ,WebOps & DevOps               ,Docstor Ltd                             ,"£9,182.00"
Companies House,CH,04/06/2021,Hardware &Software Maintenance ,WebOps & DevOps               ,EDM Group Ltd                           ,"£23,301.50"
Companies House,CH,15/06/2021,Independent adjudication – details withheld ,Late Filing Penalties         ,Independent adjudication – details withheld ,£960.00
Companies House,CH,17/06/2021,Independent adjudication – details withheld ,Late Filing Penalties         ,Independent adjudication – details withheld ,"£1,446.30"
Companies House,CH,17/06/2021,Independent adjudication – details withheld ,Late Filing Penalties         ,Independent adjudication – details withheld ,"£4,128.00"
Companies House,CH,11/06/2021,Legal Disbursements           ,Late Filing Penalties Edinburgh                 ,ALSTON LAW LTD                          ,"£1,329.67"
Companies House,CH,02/06/2021,Legal Expenses General        ,Late Filing Penalties Northern Ireland          ,WILSON NESBITT SOLICITORS               ,"£2,820.95"
Companies House,CH,02/06/2021,London Maintenance            ,London Information Centre     ,GOVERNMENT PROPERTY AGENCY (Montagu Evan,"£1,665.49"
Companies House,CH,15/06/2021,London Maintenance            ,London Information Centre     ,GOVERNMENT PROPERTY AGENCY (Montagu Evan,"£1,665.49"
Companies House,CH,02/06/2021,Maintenance Contract          ,Building Services             ,GOVERNMENT PROPERTY AGENCY (Montagu Evan,£682.23
Companies House,CH,02/06/2021,Maintenance Contract          ,Building Services             ,GOVERNMENT PROPERTY AGENCY (Montagu Evan,"£1,710.33"
Companies House,CH,02/06/2021,Maintenance Contract          ,Building Services             ,GOVERNMENT PROPERTY AGENCY (Montagu Evan,"£38,193.04"
Companies House,CH,02/06/2021,Maintenance Contract          ,Building Services             ,GOVERNMENT PROPERTY AGENCY (Montagu Evan,"£43,112.19"
Companies House,CH,15/06/2021,Maintenance Contract          ,Building Services             ,GOVERNMENT PROPERTY AGENCY (Montagu Evan,"£58,667.36"
Companies House,CH,15/06/2021,Occupational Health Contract  ,Building Services             ,PEOPLE ASSET MANAGEMENT GROUP LTD       ,£978.00
Companies House,CH,17/06/2021,Occupational Health Contract  ,Building Services             ,PEOPLE ASSET MANAGEMENT GROUP LTD       ,"£1,688.00"
Companies House,CH,02/06/2021,Occupational Health Contract  ,Building Services             ,PEOPLE ASSET MANAGEMENT GROUP LTD       ,"£2,284.35"
Companies House,CH,23/06/2021,Occupational Health Contract  ,Building Services             ,PEOPLE ASSET MANAGEMENT GROUP LTD       ,"£2,391.00"
Companies House,CH,07/06/2021,Occupational Health Contract  ,Building Services             ,PEOPLE ASSET MANAGEMENT GROUP LTD       ,"£2,598.35"
Companies House,CH,02/06/2021,Occupational Health Contract  ,Building Services             ,PEOPLE ASSET MANAGEMENT GROUP LTD       ,"£6,624.60"
Companies House,CH,02/06/2021,Occupational Health Contract  ,Building Services             ,PEOPLE ASSET MANAGEMENT GROUP LTD       ,"£6,624.60"
Companies House,CH,24/06/2021,Postage,CDD Cardiff                   ,Royal Mail                              ,"£2,571.00"
Companies House,CH,09/06/2021,Postage,CDD Cardiff                   ,Royal Mail                              ,"£3,090.35"
Companies House,CH,02/06/2021,Postage,CDD Cardiff                   ,Royal Mail                              ,"£4,400.82"
Companies House,CH,15/06/2021,Postage,CDD Cardiff                   ,Royal Mail                              ,"£4,859.85"
Companies House,CH,15/06/2021,Postage,Edinburgh                     ,Royal Mail                              ,£897.32
Companies House,CH,30/06/2021,Postage,Edinburgh                     ,Royal Mail                              ,£929.44
Companies House,CH,11/06/2021,Postage,Northern Ireland              ,QUADIENT UK LIMITED                     ,£500.00
Companies House,CH,29/06/2021,Postage,Northern Ireland              ,QUADIENT UK LIMITED                     ,£570.00
Companies House,CH,11/06/2021,Postage,Northern Ireland              ,QUADIENT UK LIMITED                     ,£750.00
Companies House,CH,04/06/2021,Postage  ,CDD Cardiff                   ,APOLLO DISTRIBUTION SOLUTIONS LTD       ,"£2,401.45"
Companies House,CH,15/06/2021,Postage     ,CDD Cardiff                   ,DX Network Services Limited             ,"£3,769.99"
Companies House,CH,15/06/2021,Postage     ,Edinburgh                     ,DX Network Services Limited             ,£877.50
Companies House,CH,23/06/2021,Print and Mailing Contract    ,CDD Cardiff                   ,APS GROUP                               ,"£2,200.38"
Companies House,CH,23/06/2021,Print and Mailing Contract    ,CDD Cardiff                   ,APS GROUP                               ,"£2,877.37"
Companies House,CH,23/06/2021,Print and Mailing Contract    ,CDD Cardiff                   ,APS GROUP                               ,"£26,923.03"
Companies House,CH,17/06/2021,Print and Mailing Contract    ,CDD Cardiff                   ,APS GROUP                               ,"£43,276.20"
Companies House,CH,30/06/2021,Print and Mailing Contract    ,CDD Cardiff                   ,APS GROUP                               ,"£59,532.86"
Companies House,CH,23/06/2021,Print and Mailing Contract    ,CDD Cardiff                   ,APS GROUP                               ,"£65,270.07"
Companies House,CH,15/06/2021,Print and Mailing Contract    ,CDD Cardiff                   ,APS GROUP                               ,"£81,275.34"
Companies House,CH,15/06/2021,Print and Mailing Contract    ,Late Filing Penalties         ,A McLay & Company Ltd                   ,"£5,674.59"
Companies House,CH,15/06/2021,Print and Mailing Contract    ,Late Filing Penalties         ,A McLay & Company Ltd                   ,"£7,088.00"
Companies House,CH,15/06/2021,Print and Mailing Contract    ,Late Filing Penalties         ,A McLay & Company Ltd                   ,"£7,862.19"
Companies House,CH,15/06/2021,Print and Mailing Contract    ,Late Filing Penalties         ,A McLay & Company Ltd                   ,"£9,270.63"
Companies House,CH,02/06/2021,Professional Fees             ,Infrastructure                ,Computacenter (GCAT)                    ,"£6,419.52"
Companies House,CH,11/06/2021,Professional Fees             ,Infrastructure                ,Computacenter (GCAT)                    ,"£6,776.16"
Companies House,CH,04/06/2021,Professional Fees             ,Infrastructure Engineering    ,EDM Group Ltd                           ,"£1,275.00"
Companies House,CH,02/06/2021,Professional Fees             ,Portfolio                     ,SANTIA ASBESTOS MANAGEMENT LTD          ,"£1,540.00"
Companies House,CH,25/06/2021,RATES                         ,Building Services             ,City and County of Cardiff              ,"£63,308.00"
Companies House,CH,25/06/2021,RATES                         ,London Information Centre     ,CITY OF WESTMINSTER                     ,"£1,934.00"
Companies House,CH,25/06/2021,RATES                         ,London Information Centre     ,CITY OF WESTMINSTER                     ,"£2,944.00"
Companies House,CH,11/06/2021,RATES                         ,Northern Ireland              ,LAND AND PROPERTY SERVICES              ,"£56,758.86"
,,28/06/2021,RATES                         ,Edinburgh                     ,City of Edinburgh,"£7,083.00"
Companies House,CH,21/06/2021,Recruitment Expenses          ,HR Service delivery           ,MICHAEL PAGE INTERNATIONAL RECRUITMENT  ,"£3,417.40"
Companies House,CH,23/06/2021,Rent                          ,London Information Centre     ,Jon Christopher Chartered Surveyors     ,"£12,296.25"
Companies House,CH,09/06/2021,Restaurant Services           ,Building Services             ,THE VENDING PEOPLE                      ,"£1,087.83"
Companies House,CH,07/06/2021,Restaurant Services           ,Building Services             ,ARAMARK                                 ,"£13,669.88"
Companies House,CH,28/06/2021,Rolling Maintenance & minor contracts,Building Services             ,CLEMENT WALKER ELECTRICAL & MECHANICAL  ,"£1,003.00"
Companies House,CH,11/06/2021,Rolling Maintenance & minor contracts,Building Services             ,AFT CORPORATE FACILITIES LTD            ,"£1,825.00"
Companies House,CH,15/06/2021,Rolling Maintenance & minor contracts,Building Services             ,Schneider Electric                      ,"£3,512.40"
Companies House,CH,28/06/2021,Rolling Maintenance & minor contracts,Building Services             ,FAITHFUL+GOULD LTD                      ,"£8,422.00"
Companies House,CH,15/06/2021,Rolling Maintenance & minor contracts,Building Services             ,Schneider Electric                      ,"£10,844.40"
Companies House,CH,21/06/2021,Rolling Maintenance & minor contracts,Building Services             ,CLEMENT WALKER ELECTRICAL & MECHANICAL  ,"£19,942.64"
Companies House,CH,02/06/2021,Security                      ,Accounting                    ,Loomis Uk Ltd                           ,£649.45
Companies House,CH,02/06/2021,Security                      ,Accounting                    ,Loomis Uk Ltd                           ,£649.45
Companies House,CH,02/06/2021,Security                      ,Accounting                    ,Loomis Uk Ltd                           ,£649.45
Companies House,CH,02/06/2021,Security                      ,Building Services             ,GOVERNMENT PROPERTY AGENCY (Montagu Evan,"£30,581.73"
Companies House,CH,02/06/2021,Security                      ,Building Services             ,GOVERNMENT PROPERTY AGENCY (Montagu Evan,"£35,932.00"
Companies House,CH,15/06/2021,Security                      ,Building Services             ,GOVERNMENT PROPERTY AGENCY (Montagu Evan,"£35,932.01"
Companies House,CH,02/06/2021,Security                      ,London Information Centre     ,GOVERNMENT PROPERTY AGENCY (Montagu Evan,"£8,222.05"
Companies House,CH,15/06/2021,Security                      ,London Information Centre     ,GOVERNMENT PROPERTY AGENCY (Montagu Evan,"£8,222.05"
Companies House,CH,30/06/2021,Service charges               ,Edinburgh                     ,KNIGHT FRANK                            ,"£1,121.79"
Companies House,CH,23/06/2021,Service charges               ,London Information Centre     ,Jon Christopher Chartered Surveyors     ,"£3,961.96"
Companies House,CH,09/06/2021,Software as a service         ,Cyber Security                ,E2E ASSURE                              ,"£19,935.00"
Companies House,CH,23/06/2021,Software as a service         ,Infrastructure                ,AVOIRA LTD                              ,"£2,450.00"
Companies House,CH,03/06/2021,Software as a service         ,Infrastructure Engineering    ,INNOCRAFT LTD                           ,"£8,535.06"
Companies House,CH,28/06/2021,Software as a service         ,Infrastructure Engineering    ,SONARSOURCE SA                          ,"£14,040.94"
Companies House,CH,02/06/2021,Software Licence              ,Infrastructure                ,Computacenter (GCAT)                    ,"£5,065.32"
Companies House,CH,02/06/2021,Stationery & Consumables      ,Procurement                   ,Complete Business Solutions             ,£909.60
Companies House,CH,15/06/2021,Stationery & Consumables      ,Procurement                   ,A McLay & Company Ltd                   ,"£1,080.00"
Companies House,CH,15/06/2021,Subscriptions                 ,Organisational Overheads      ,XBRL UK Ltd                             ,"£5,000.00"
Companies House,CH,09/06/2021,Telecom Maintenance           ,Infrastructure                ,MAINTEL EUROPE LTD                      ,"£14,975.94"
Companies House,CH,09/06/2021,Telephone Costs,Infrastructure                ,TELEFONICA UK LTD                       ,"£3,222.62"
Companies House,CH,11/06/2021,TFM Cost Stream 2             ,Building Services             ,GOVERNMENT PROPERTY AGENCY (Montagu Evan,"£12,136.21"
Companies House,CH,02/06/2021,TFM Cost Stream 2             ,Building Services             ,GOVERNMENT PROPERTY AGENCY (Montagu Evan,"£14,089.97"
Companies House,CH,02/06/2021,TFM Cost Stream 2             ,Building Services             ,GOVERNMENT PROPERTY AGENCY (Montagu Evan,"£23,779.73"
Companies House,CH,11/06/2021,TFM Cost Stream 2             ,Building Services             ,GOVERNMENT PROPERTY AGENCY (Montagu Evan,"£32,969.99"
Companies House,CH,15/06/2021,TFM Cost Stream 2             ,Building Services             ,GOVERNMENT PROPERTY AGENCY (Montagu Evan,"£83,667.17"
Companies House,CH,02/06/2021,TFM Management fees           ,Building Services             ,GOVERNMENT PROPERTY AGENCY (Montagu Evan,£550.25
Companies House,CH,02/06/2021,TFM Management fees           ,Building Services             ,GOVERNMENT PROPERTY AGENCY (Montagu Evan,£833.48
Companies House,CH,02/06/2021,TFM Management fees           ,Building Services             ,GOVERNMENT PROPERTY AGENCY (Montagu Evan,"£9,441.00"
Companies House,CH,02/06/2021,TFM Management fees           ,Building Services             ,GOVERNMENT PROPERTY AGENCY (Montagu Evan,"£13,132.40"
Companies House,CH,15/06/2021,TFM Management fees           ,Building Services             ,GOVERNMENT PROPERTY AGENCY (Montagu Evan,"£13,132.40"
Companies House,CH,02/06/2021,TFM Management fees           ,Edinburgh                     ,GOVERNMENT PROPERTY AGENCY (Montagu Evan,£839.54
Companies House,CH,15/06/2021,TFM Management fees           ,Edinburgh                     ,GOVERNMENT PROPERTY AGENCY (Montagu Evan,£839.54
Companies House,CH,15/06/2021,TFM Management fees           ,London Information Centre     ,GOVERNMENT PROPERTY AGENCY (Montagu Evan,"£1,269.00"
Companies House,CH,02/06/2021,TFM Management fees           ,London Information Centre     ,GOVERNMENT PROPERTY AGENCY (Montagu Evan,"£1,269.02"
Companies House,CH,02/06/2021,TFM Management fees           ,Northern Ireland              ,GOVERNMENT PROPERTY AGENCY (Montagu Evan,"£1,450.57"
Companies House,CH,15/06/2021,TFM Management fees           ,Northern Ireland              ,GOVERNMENT PROPERTY AGENCY (Montagu Evan,"£1,450.57"
Companies House,CH,24/06/2021,Training Digital              ,Training                      ,ASSIST KNOWLEDGE DEVELOPMENT LTD        ,£795.00
Companies House,CH,17/06/2021,Training Digital              ,Training                      ,Elasticsearch Ltd                       ,"£3,300.00"
Companies House,CH,15/06/2021,Training External             ,Portfolio                     ,BITESIZE COMPUTER TRAINING LTD          ,£500.00
Companies House,CH,23/06/2021,Training External             ,Portfolio                     ,BITESIZE COMPUTER TRAINING LTD          ,£500.00
Companies House,CH,02/06/2021,Training External             ,Portfolio                     ,BITESIZE COMPUTER TRAINING LTD          ,£750.00
Companies House,CH,28/06/2021,Training External             ,Portfolio                     ,BITESIZE COMPUTER TRAINING LTD          ,"£1,000.00"
Companies House,CH,02/06/2021,Travel,Covid 19 Activity             ,BLUE TRANSPORTATION LTD                 ,"£6,875.60"
Companies House,CH,04/06/2021,Water                         ,Building Services             ,Dwr Cymru Welsh Water                   ,"£1,122.42"
Companies House,CH,25/06/2021,Water                         ,Edinburgh                     ,BUSINESS STREAM LIMITED                 ,"£4,863.87"
